[Event "*** Titled Tuesday Blitz"]
[Site "Chess.com"]
[Date "2020.05.26"]
[Round "6"]
[White "diablanni"]
[Black "Jungle_Jaguar"]
[Result "0-1"]
[WhiteElo "2320"]
[BlackElo "2576"]
[TimeControl "180+1"]
[EndTime "11:06:52 PDT"]
[Termination "Jungle_Jaguar won by checkmate"]

1. e4 {[%clk 0:02:59.1]} 1... e5 {[%clk 0:03:00.1]} 2. Nf3 {[%clk 0:02:58.6]}
2... Nc6 {[%clk 0:03:00.7]} 3. d4 {[%clk 0:02:57.5]} 3... exd4 {[%clk
0:03:00.8]} 4. Nxd4 {[%clk 0:02:57.3]} 4... Nf6 {[%clk 0:03:01.3]} 5. Nxc6
{[%clk 0:02:56.9]} 5... bxc6 {[%clk 0:03:02.2]} 6. e5 {[%clk 0:02:56.6]} 6...
Qe7 {[%clk 0:03:02.5]} 7. Qe2 {[%clk 0:02:56.6]} 7... Nd5 {[%clk 0:03:03]} 8. c4
{[%clk 0:02:57.1]} 8... Ba6 {[%clk 0:03:01.1]} 9. b3 {[%clk 0:02:57]} 9... g6
{[%clk 0:03:00.2]} 10. f4 {[%clk 0:02:43.5]} 10... Bg7 {[%clk 0:02:57.3]} 11.
Qf2 {[%clk 0:02:24.1]} 11... Nb6 {[%clk 0:02:52.2]} 12. Ba3 {[%clk 0:02:14.9]}
12... Qe6 {[%clk 0:02:50.2]} 13. Be2 {[%clk 0:02:09]} 13... d6 {[%clk
0:02:50.2]} 14. Nc3 {[%clk 0:01:41.5]} 14... dxe5 {[%clk 0:02:38.1]} 15. Rc1
{[%clk 0:01:17.9]} 15... O-O-O {[%clk 0:02:33]} 16. f5 {[%clk 0:00:53.2]} 16...
gxf5 {[%clk 0:02:22.2]} 17. O-O {[%clk 0:00:52.9]} 17... Bh6 {[%clk 0:01:27.1]}
18. Rcd1 {[%clk 0:00:23.8]} 18... Rxd1 {[%clk 0:01:22.8]} 19. Nxd1 {[%clk
0:00:23.5]} 19... f4 {[%clk 0:01:19.6]} 20. Qc5 {[%clk 0:00:22.2]} 20... Bb7
{[%clk 0:01:14.6]} 21. Nc3 {[%clk 0:00:20.5]} 21... f5 {[%clk 0:01:10.4]} 22.
Qa5 {[%clk 0:00:19.5]} 22... Kb8 {[%clk 0:01:10.2]} 23. Bb2 {[%clk 0:00:16.8]}
23... Rg8 {[%clk 0:01:06.9]} 24. Rd1 {[%clk 0:00:14.6]} 24... e4 {[%clk
0:01:03.9]} 25. c5 {[%clk 0:00:14.3]} 25... f3 {[%clk 0:00:50.9]} 26. Bf1 {[%clk
0:00:14.3]} 26... fxg2 {[%clk 0:00:37.5]} 27. Be2 {[%clk 0:00:11.8]} 27... Be3#
{[%clk 0:00:36.8]} 0-1

[Event "*** Titled Tuesday Blitz"]
[Site "Chess.com"]
[Date "2020.05.26"]
[Round "6"]
[White "rasmussvane"]
[Black "lachesisQ"]
[Result "0-1"]
[WhiteElo "2855"]
[BlackElo "3158"]
[TimeControl "180+1"]
[EndTime "11:06:54 PDT"]
[Termination "lachesisQ won by resignation"]

1. Nf3 {[%clk 0:03:00.9]} 1... Nf6 {[%clk 0:02:58.5]} 2. g3 {[%clk 0:03:01.3]}
2... d5 {[%clk 0:02:58.5]} 3. Bg2 {[%clk 0:03:01.8]} 3... g6 {[%clk 0:02:58.7]}
4. O-O {[%clk 0:03:02.4]} 4... Bg7 {[%clk 0:02:58.8]} 5. d4 {[%clk 0:03:03.1]}
5... O-O {[%clk 0:02:58.9]} 6. c4 {[%clk 0:02:57.3]} 6... c6 {[%clk 0:02:55.4]}
7. Qb3 {[%clk 0:02:57]} 7... Qb6 {[%clk 0:02:55]} 8. Nc3 {[%clk 0:02:57.5]} 8...
Rd8 {[%clk 0:02:54.5]} 9. Bd2 {[%clk 0:02:57.9]} 9... dxc4 {[%clk 0:02:54.4]}
10. Qxc4 {[%clk 0:02:58.8]} 10... Be6 {[%clk 0:02:54.7]} 11. Qa4 {[%clk
0:02:54]} 11... Bf5 {[%clk 0:02:55.1]} 12. Qa3 {[%clk 0:02:23.6]} 12... Re8
{[%clk 0:02:52.5]} 13. Na4 {[%clk 0:02:21.8]} 13... Qa6 {[%clk 0:02:51.3]} 14.
Rfe1 {[%clk 0:02:20.7]} 14... Ne4 {[%clk 0:02:39.4]} 15. Bb4 {[%clk 0:02:17.9]}
15... Nd7 {[%clk 0:02:32]} 16. Rad1 {[%clk 0:02:03.7]} 16... Nb6 {[%clk
0:02:24.8]} 17. Nxb6 {[%clk 0:01:40.8]} 17... axb6 {[%clk 0:02:23.3]} 18. Qxa6
{[%clk 0:01:39]} 18... Rxa6 {[%clk 0:02:22.6]} 19. Nh4 {[%clk 0:01:29.4]} 19...
c5 {[%clk 0:01:52.7]} 20. Nxf5 {[%clk 0:01:26]} 20... gxf5 {[%clk 0:01:52.2]}
21. Bxe4 {[%clk 0:01:24.9]} 21... fxe4 {[%clk 0:01:50.7]} 22. dxc5 {[%clk
0:01:25.1]} 22... bxc5 {[%clk 0:01:49.4]} 23. Bxc5 {[%clk 0:01:25.3]} 23... Rxa2
{[%clk 0:01:43.7]} 24. b4 {[%clk 0:01:20.2]} 24... Bc3 {[%clk 0:01:42.5]} 25.
Rf1 {[%clk 0:01:16.4]} 25... Rxe2 {[%clk 0:01:42.2]} 26. Rd7 {[%clk 0:01:17]}
26... b6 {[%clk 0:01:42.2]} 27. Bxe7 {[%clk 0:01:06.1]} 27... h6 {[%clk
0:01:37.8]} 28. b5 {[%clk 0:00:50.1]} 28... Rb2 {[%clk 0:01:33.4]} 29. Rc1
{[%clk 0:00:50.1]} 29... Bg7 {[%clk 0:01:24.5]} 30. Rcc7 {[%clk 0:00:30.8]}
30... Rxb5 {[%clk 0:01:21.2]} 31. Bd6 {[%clk 0:00:26.7]} 31... Rf5 {[%clk
0:01:19.8]} 32. Bf4 {[%clk 0:00:26.9]} 32... Re6 {[%clk 0:01:13.9]} 33. Be3
{[%clk 0:00:26.3]} 33... Bf8 {[%clk 0:01:05.8]} 34. Kg2 {[%clk 0:00:24.1]} 34...
Bc5 {[%clk 0:01:04.6]} 35. Bxc5 {[%clk 0:00:24.3]} 35... bxc5 {[%clk 0:01:04.8]}
36. Rc8+ {[%clk 0:00:23.9]} 36... Kg7 {[%clk 0:01:04.9]} 37. Rdc7 {[%clk
0:00:23.4]} 37... Ref6 {[%clk 0:01:05.1]} 38. f4 {[%clk 0:00:19.8]} 38... exf3+
{[%clk 0:01:04.8]} 39. Kf1 {[%clk 0:00:19]} 39... Rd5 {[%clk 0:01:04.5]} 40.
Rxc5 {[%clk 0:00:16.7]} 40... Rd1+ {[%clk 0:01:04.8]} 41. Kf2 {[%clk 0:00:16.8]}
41... Rd2+ {[%clk 0:01:05.7]} 42. Ke1 {[%clk 0:00:15.2]} 42... f2+ {[%clk
0:01:04.9]} 0-1

[Event "*** Titled Tuesday Blitz"]
[Site "Chess.com"]
[Date "2020.05.26"]
[Round "6"]
[White "Indianlad"]
[Black "AnthonyWirig"]
[Result "1-0"]
[WhiteElo "2979"]
[BlackElo "2692"]
[TimeControl "180+1"]
[EndTime "11:06:55 PDT"]
[Termination "Indianlad won on time"]

1. d4 {[%clk 0:03:00.9]} 1... Nf6 {[%clk 0:02:57.8]} 2. c4 {[%clk 0:03:01.4]}
2... e6 {[%clk 0:02:57.6]} 3. Nf3 {[%clk 0:03:00.4]} 3... Bb4+ {[%clk
0:02:48.6]} 4. Bd2 {[%clk 0:02:58.8]} 4... Bxd2+ {[%clk 0:02:46.8]} 5. Qxd2
{[%clk 0:02:58.3]} 5... d5 {[%clk 0:02:46.5]} 6. Nc3 {[%clk 0:02:57.4]} 6... O-O
{[%clk 0:02:46.1]} 7. Qf4 {[%clk 0:02:48.9]} 7... Qe7 {[%clk 0:02:20.4]} 8.
O-O-O {[%clk 0:02:22.5]} 8... c6 {[%clk 0:01:46.6]} 9. e4 {[%clk 0:02:21.6]}
9... dxc4 {[%clk 0:01:46.1]} 10. Bxc4 {[%clk 0:02:19]} 10... b5 {[%clk
0:01:37.8]} 11. Bd3 {[%clk 0:02:19]} 11... b4 {[%clk 0:01:38.3]} 12. Na4 {[%clk
0:02:12]} 12... h6 {[%clk 0:01:18.5]} 13. g4 {[%clk 0:02:10.1]} 13... Nfd7
{[%clk 0:01:06.5]} 14. g5 {[%clk 0:02:01.4]} 14... hxg5 {[%clk 0:00:56.7]} 15.
Nxg5 {[%clk 0:02:00.8]} 15... f6 {[%clk 0:00:49.4]} 16. Nf3 {[%clk 0:01:53.6]}
16... Nb6 {[%clk 0:00:47.8]} 17. Nc5 {[%clk 0:01:49.7]} 17... N8d7 {[%clk
0:00:45.8]} 18. Rhg1 {[%clk 0:01:34.6]} 18... Nxc5 {[%clk 0:00:43.4]} 19. dxc5
{[%clk 0:01:35.5]} 19... Qxc5+ {[%clk 0:00:44]} 20. Kb1 {[%clk 0:01:36]} 20...
e5 {[%clk 0:00:35.7]} 21. Qh6 {[%clk 0:01:24.4]} 21... Qe7 {[%clk 0:00:30.6]}
22. Nh4 {[%clk 0:01:20.1]} 22... g5 {[%clk 0:00:18.5]} 23. Ng6 {[%clk
0:01:11.7]} 23... Qg7 {[%clk 0:00:18.6]} 24. Qxg7+ {[%clk 0:01:01.4]} 24... Kxg7
{[%clk 0:00:19.5]} 25. Nxf8 {[%clk 0:01:02.1]} 25... Kxf8 {[%clk 0:00:20.3]} 26.
Be2 {[%clk 0:01:02.8]} 26... Be6 {[%clk 0:00:19.6]} 27. Rd6 {[%clk 0:01:01.8]}
27... Ke7 {[%clk 0:00:19.1]} 28. Rxc6 {[%clk 0:01:02]} 28... Rh8 {[%clk
0:00:14.8]} 29. Rd1 {[%clk 0:00:51.7]} 29... Rxh2 {[%clk 0:00:11.2]} 30. Rc7+
{[%clk 0:00:51.9]} 30... Ke8 {[%clk 0:00:10.9]} 31. Bb5+ {[%clk 0:00:52]} 1-0

[Event "*** Titled Tuesday Blitz"]
[Site "Chess.com"]
[Date "2020.05.26"]
[Round "6"]
[White "RaunakSadhwani2005"]
[Black "GmSergioBarrientos"]
[Result "1-0"]
[WhiteElo "2835"]
[BlackElo "2618"]
[TimeControl "180+1"]
[EndTime "11:06:55 PDT"]
[Termination "RaunakSadhwani2005 won by resignation"]

1. e4 {[%clk 0:02:54]} 1... c5 {[%clk 0:02:58.9]} 2. Nc3 {[%clk 0:02:53.2]} 2...
d6 {[%clk 0:02:54.4]} 3. d4 {[%clk 0:02:53.5]} 3... cxd4 {[%clk 0:02:51.2]} 4.
Qxd4 {[%clk 0:02:54.4]} 4... Nc6 {[%clk 0:02:49.7]} 5. Qd2 {[%clk 0:02:55]} 5...
Nf6 {[%clk 0:02:39.6]} 6. b3 {[%clk 0:02:54.9]} 6... e6 {[%clk 0:02:37.9]} 7.
Bb2 {[%clk 0:02:55.3]} 7... Be7 {[%clk 0:02:38.1]} 8. O-O-O {[%clk 0:02:54.9]}
8... O-O {[%clk 0:02:38.7]} 9. f4 {[%clk 0:02:51.5]} 9... a6 {[%clk 0:02:38.8]}
10. Nf3 {[%clk 0:02:51.2]} 10... b5 {[%clk 0:02:38.9]} 11. Bd3 {[%clk
0:02:51.3]} 11... Bb7 {[%clk 0:02:38.8]} 12. g4 {[%clk 0:02:51]} 12... Nb4
{[%clk 0:02:29.6]} 13. g5 {[%clk 0:02:41.3]} 13... Nd7 {[%clk 0:02:28.5]} 14.
Kb1 {[%clk 0:02:31.4]} 14... Rc8 {[%clk 0:02:20.7]} 15. h4 {[%clk 0:02:29]}
15... d5 {[%clk 0:02:20.5]} 16. exd5 {[%clk 0:02:14.5]} 16... Nxd5 {[%clk
0:02:18.3]} 17. Nxd5 {[%clk 0:02:13.9]} 17... Bxd5 {[%clk 0:02:17.8]} 18. Qe2
{[%clk 0:02:14]} 18... Qc7 {[%clk 0:02:05.7]} 19. h5 {[%clk 0:02:06.9]} 19... f5
{[%clk 0:01:39.6]} 20. Bxf5 {[%clk 0:01:33.3]} 20... Rxf5 {[%clk 0:01:18.1]} 21.
Rxd5 {[%clk 0:01:32.7]} 21... exd5 {[%clk 0:01:12.5]} 22. Qe6+ {[%clk
0:01:32.3]} 22... Rf7 {[%clk 0:01:01.4]} 23. g6 {[%clk 0:01:30.6]} 23... Qxc2+
{[%clk 0:00:59.5]} 24. Ka1 {[%clk 0:01:30.8]} 24... Rf8 {[%clk 0:00:49.7]} 25.
gxf7+ {[%clk 0:01:24.5]} 25... Rxf7 {[%clk 0:00:49.8]} 26. Rc1 {[%clk
0:01:13.6]} 26... Qf5 {[%clk 0:00:41.4]} 27. Qxa6 {[%clk 0:01:12.8]} 27... Bf6
{[%clk 0:00:34.3]} 28. Ne5 {[%clk 0:00:50.8]} 28... Qxf4 {[%clk 0:00:25.9]} 29.
Qc8+ {[%clk 0:00:43]} 29... Rf8 {[%clk 0:00:20.5]} 30. Qxd7 {[%clk 0:00:40.4]}
30... Bxe5 {[%clk 0:00:20.9]} 31. Qe6+ {[%clk 0:00:40.6]} 31... Kh8 {[%clk
0:00:19]} 32. Qxe5 {[%clk 0:00:41.1]} 32... Qxe5 {[%clk 0:00:19.2]} 33. Bxe5
{[%clk 0:00:40.9]} 33... h6 {[%clk 0:00:20.1]} 34. Rc7 {[%clk 0:00:40.7]} 1-0

[Event "*** Titled Tuesday Blitz"]
[Site "Chess.com"]
[Date "2020.05.26"]
[Round "6"]
[White "731291"]
[Black "Klavdia_Nik"]
[Result "1-0"]
[WhiteElo "2639"]
[BlackElo "2052"]
[TimeControl "180+1"]
[EndTime "11:06:56 PDT"]
[Termination "731291 won on time"]

1. e4 {[%clk 0:03:00.9]} 1... e5 {[%clk 0:02:57]} 2. Nf3 {[%clk 0:02:58.9]} 2...
Nc6 {[%clk 0:02:56.2]} 3. Bb5 {[%clk 0:02:56.1]} 3... a6 {[%clk 0:02:56.1]} 4.
Ba4 {[%clk 0:02:54.5]} 4... Nf6 {[%clk 0:02:55.6]} 5. O-O {[%clk 0:02:52.8]}
5... Be7 {[%clk 0:02:55.7]} 6. d3 {[%clk 0:02:48.3]} 6... b5 {[%clk 0:02:54.2]}
7. Bb3 {[%clk 0:02:43.9]} 7... d6 {[%clk 0:02:53]} 8. a3 {[%clk 0:02:43.7]} 8...
O-O {[%clk 0:02:52.4]} 9. Nc3 {[%clk 0:02:44.1]} 9... Bg4 {[%clk 0:02:47.9]} 10.
Be3 {[%clk 0:02:43.5]} 10... Na5 {[%clk 0:02:41.4]} 11. Ba2 {[%clk 0:02:43.3]}
11... c5 {[%clk 0:02:41]} 12. h3 {[%clk 0:02:41.6]} 12... Bc8 {[%clk 0:02:35.7]}
13. Nd5 {[%clk 0:02:41.2]} 13... Nxd5 {[%clk 0:02:28.8]} 14. Bxd5 {[%clk
0:02:42.1]} 14... Bb7 {[%clk 0:02:28.3]} 15. b4 {[%clk 0:02:26.9]} 15... Bxd5
{[%clk 0:02:23.9]} 16. exd5 {[%clk 0:02:27.8]} 16... Nb7 {[%clk 0:02:23.1]} 17.
c4 {[%clk 0:02:28]} 17... Rc8 {[%clk 0:02:03.6]} 18. Nd2 {[%clk 0:02:16.4]}
18... f5 {[%clk 0:02:00.2]} 19. f3 {[%clk 0:02:09.7]} 19... Bf6 {[%clk
0:01:47.2]} 20. Rb1 {[%clk 0:02:07.7]} 20... cxb4 {[%clk 0:01:33.2]} 21. axb4
{[%clk 0:02:03.5]} 21... Bg5 {[%clk 0:01:30.5]} 22. Qe2 {[%clk 0:01:59.5]} 22...
Bxe3+ {[%clk 0:01:19.5]} 23. Qxe3 {[%clk 0:02:00.4]} 23... Rf7 {[%clk
0:00:51.2]} 24. Ra1 {[%clk 0:01:53.2]} 24... Ra8 {[%clk 0:00:46.2]} 25. Ra2
{[%clk 0:01:34.5]} 25... a5 {[%clk 0:00:38.7]} 26. Rfa1 {[%clk 0:01:33]} 26...
Qc7 {[%clk 0:00:13.9]} 27. cxb5 {[%clk 0:01:14.9]} 27... Qc3 {[%clk 0:00:11.8]}
28. bxa5 {[%clk 0:01:14.9]} 28... Rxa5 {[%clk 0:00:10.1]} 29. Nc4 {[%clk
0:01:05]} 29... Rxa2 {[%clk 0:00:09.6]} 30. Rxa2 {[%clk 0:01:05.9]} 30... Rd7
{[%clk 0:00:07.8]} 31. Ra8+ {[%clk 0:01:01.5]} 31... Kf7 {[%clk 0:00:07.1]} 32.
Qg5 {[%clk 0:00:54.8]} 1-0

[Event "*** Titled Tuesday Blitz"]
[Site "Chess.com"]
[Date "2020.05.26"]
[Round "6"]
[White "lupta_robin"]
[Black "OparinGrigoriy"]
[Result "0-1"]
[WhiteElo "2620"]
[BlackElo "2892"]
[TimeControl "180+1"]
[EndTime "11:06:57 PDT"]
[Termination "OparinGrigoriy won on time"]

1. e4 {[%clk 0:03:00.9]} 1... c6 {[%clk 0:02:59.1]} 2. d4 {[%clk 0:02:59.6]}
2... d5 {[%clk 0:03:00]} 3. Nc3 {[%clk 0:03:00]} 3... dxe4 {[%clk 0:03:00.4]} 4.
Nxe4 {[%clk 0:03:00.2]} 4... Nf6 {[%clk 0:03:01.3]} 5. Nxf6+ {[%clk 0:02:59.8]}
5... exf6 {[%clk 0:03:02.2]} 6. c3 {[%clk 0:02:58.5]} 6... Bd6 {[%clk
0:03:02.7]} 7. Qc2 {[%clk 0:02:58.8]} 7... O-O {[%clk 0:03:03.6]} 8. Bd3 {[%clk
0:02:59.2]} 8... Re8+ {[%clk 0:03:04.5]} 9. Ne2 {[%clk 0:02:59.4]} 9... h5
{[%clk 0:03:05.2]} 10. Be3 {[%clk 0:02:59.7]} 10... Nd7 {[%clk 0:03:04.3]} 11.
O-O-O {[%clk 0:02:53.4]} 11... Nf8 {[%clk 0:03:04.1]} 12. Kb1 {[%clk 0:02:51.7]}
12... Be6 {[%clk 0:03:03.2]} 13. Nf4 {[%clk 0:02:45.5]} 13... Bxf4 {[%clk
0:03:03]} 14. Bxf4 {[%clk 0:02:44.8]} 14... Qd5 {[%clk 0:03:00]} 15. c4 {[%clk
0:02:32.6]} 15... Qxg2 {[%clk 0:02:39]} 16. Rhg1 {[%clk 0:02:20.2]} 16... Qf3
{[%clk 0:02:38.8]} 17. Bh6 {[%clk 0:02:01.6]} 17... Bg4 {[%clk 0:02:38.9]} 18.
Be3 {[%clk 0:01:17.9]} 18... f5 {[%clk 0:02:22.5]} 19. Rde1 {[%clk 0:01:07.7]}
19... f4 {[%clk 0:02:19.7]} 20. Be2 {[%clk 0:00:58.1]} 20... Qh3 {[%clk
0:02:10.8]} 21. Bxg4 {[%clk 0:00:57.4]} 21... hxg4 {[%clk 0:02:10.5]} 22. Bxf4
{[%clk 0:00:57.7]} 22... Ne6 {[%clk 0:02:02.8]} 23. Be5 {[%clk 0:00:55.4]} 23...
f6 {[%clk 0:01:59.1]} 24. d5 {[%clk 0:00:55.6]} 24... fxe5 {[%clk 0:01:53.6]}
25. dxe6 {[%clk 0:00:55.2]} 25... Rxe6 {[%clk 0:01:54.5]} 26. Qf5 {[%clk
0:00:52.1]} 26... Rf6 {[%clk 0:01:16.5]} 27. Qxe5 {[%clk 0:00:52.1]} 27... Rxf2
{[%clk 0:01:14.4]} 28. Qe6+ {[%clk 0:00:50.8]} 28... Kh8 {[%clk 0:01:14.4]} 29.
Rxg4 {[%clk 0:00:47]} 29... Qxh2 {[%clk 0:01:06]} 30. Qe5 {[%clk 0:00:12.8]}
30... Qxe5 {[%clk 0:01:02.5]} 31. Rxe5 {[%clk 0:00:13.7]} 31... Rd8 {[%clk
0:01:00.9]} 32. a3 {[%clk 0:00:02.8]} 32... Rd7 {[%clk 0:00:48]} 0-1

[Event "*** Titled Tuesday Blitz"]
[Site "Chess.com"]
[Date "2020.05.26"]
[Round "6"]
[White "pastouche06"]
[Black "ameetghasi100"]
[Result "0-1"]
[WhiteElo "2470"]
[BlackElo "2711"]
[TimeControl "180+1"]
[EndTime "11:06:59 PDT"]
[Termination "ameetghasi100 won by resignation"]

1. d4 {[%clk 0:03:00.9]} 1... Nf6 {[%clk 0:02:59.4]} 2. c4 {[%clk 0:03:00.6]}
2... g6 {[%clk 0:02:59.9]} 3. f3 {[%clk 0:03:00.3]} 3... Bg7 {[%clk 0:03:00.5]}
4. e4 {[%clk 0:03:00.1]} 4... O-O {[%clk 0:03:01.4]} 5. Nc3 {[%clk 0:03:00.3]}
5... a6 {[%clk 0:03:00.3]} 6. Be3 {[%clk 0:02:57.4]} 6... d6 {[%clk 0:02:57.3]}
7. Qd2 {[%clk 0:02:55.6]} 7... e5 {[%clk 0:02:56.5]} 8. d5 {[%clk 0:02:51.3]}
8... Nh5 {[%clk 0:02:56.7]} 9. Bd3 {[%clk 0:02:40.4]} 9... Nf4 {[%clk
0:02:55.6]} 10. g3 {[%clk 0:02:29.8]} 10... Nxd3+ {[%clk 0:02:55.1]} 11. Qxd3
{[%clk 0:02:30.7]} 11... f5 {[%clk 0:02:55.5]} 12. Nge2 {[%clk 0:02:27.2]} 12...
Nd7 {[%clk 0:02:55.2]} 13. exf5 {[%clk 0:02:18.8]} 13... gxf5 {[%clk 0:02:56.1]}
14. Qd2 {[%clk 0:02:18.7]} 14... Nf6 {[%clk 0:02:48.7]} 15. Bh6 {[%clk
0:02:02.4]} 15... Qe8 {[%clk 0:02:48.1]} 16. Bxg7 {[%clk 0:02:01.6]} 16... Kxg7
{[%clk 0:02:47.9]} 17. f4 {[%clk 0:01:41.4]} 17... b5 {[%clk 0:02:44.9]} 18.
fxe5 {[%clk 0:01:20.8]} 18... dxe5 {[%clk 0:02:43.8]} 19. c5 {[%clk 0:01:20.5]}
19... b4 {[%clk 0:02:43]} 20. Nd1 {[%clk 0:01:18.2]} 20... a5 {[%clk 0:02:06.3]}
21. O-O {[%clk 0:01:14]} 21... Qh5 {[%clk 0:02:04.9]} 22. Ne3 {[%clk 0:01:10.3]}
22... Ne4 {[%clk 0:02:04]} 23. Qc2 {[%clk 0:01:07.1]} 23... Ba6 {[%clk 0:01:41]}
24. Rae1 {[%clk 0:00:59]} 24... Kh8 {[%clk 0:01:06.2]} 25. Nxf5 {[%clk
0:00:41.9]} 25... Ng5 {[%clk 0:01:04.5]} 26. Kh1 {[%clk 0:00:20.7]} 26... Nf3
{[%clk 0:00:58.4]} 27. Ng1 {[%clk 0:00:13]} 27... Bxf1 {[%clk 0:00:34.1]} 28.
Rxf1 {[%clk 0:00:13.1]} 28... Rxf5 {[%clk 0:00:32.8]} 0-1

[Event "*** Titled Tuesday Blitz"]
[Site "Chess.com"]
[Date "2020.05.26"]
[Round "6"]
[White "Gentle_Emperor"]
[Black "Arek_pacitan"]
[Result "1-0"]
[WhiteElo "2324"]
[BlackElo "2530"]
[TimeControl "180+1"]
[EndTime "11:06:59 PDT"]
[Termination "Gentle_Emperor won by resignation"]

1. d4 {[%clk 0:02:58]} 1... Nf6 {[%clk 0:02:30.8]} 2. Nf3 {[%clk 0:02:58.9]}
2... g6 {[%clk 0:02:28.6]} 3. c4 {[%clk 0:02:59.8]} 3... Bg7 {[%clk 0:02:25]} 4.
Nc3 {[%clk 0:02:59.9]} 4... O-O {[%clk 0:02:25.5]} 5. e4 {[%clk 0:02:59.1]} 5...
d6 {[%clk 0:02:22.4]} 6. Be2 {[%clk 0:02:58.9]} 6... Nbd7 {[%clk 0:02:20.2]} 7.
h3 {[%clk 0:02:56.5]} 7... e5 {[%clk 0:02:19.9]} 8. d5 {[%clk 0:02:55.5]} 8...
a5 {[%clk 0:02:19.2]} 9. Be3 {[%clk 0:02:54.1]} 9... b6 {[%clk 0:02:17.7]} 10.
g4 {[%clk 0:02:53.4]} 10... Nc5 {[%clk 0:02:17.6]} 11. Nd2 {[%clk 0:02:52.5]}
11... Kh8 {[%clk 0:02:14.1]} 12. h4 {[%clk 0:02:48.3]} 12... Ne8 {[%clk
0:02:04.4]} 13. g5 {[%clk 0:02:45.2]} 13... f5 {[%clk 0:02:03.4]} 14. f3 {[%clk
0:02:41.8]} 14... fxe4 {[%clk 0:02:01.4]} 15. fxe4 {[%clk 0:02:40.1]} 15... Kg8
{[%clk 0:01:55.3]} 16. Qc2 {[%clk 0:02:30.6]} 16... a4 {[%clk 0:01:53.9]} 17.
O-O-O {[%clk 0:02:29.1]} 17... Bd7 {[%clk 0:01:53.1]} 18. h5 {[%clk 0:02:25.9]}
18... Qe7 {[%clk 0:01:53]} 19. Rdf1 {[%clk 0:02:10.6]} 19... Rxf1+ {[%clk
0:01:47.4]} 20. Rxf1 {[%clk 0:02:07.3]} 20... c6 {[%clk 0:01:47.9]} 21. Qd1
{[%clk 0:01:49.9]} 21... Nc7 {[%clk 0:01:41.7]} 22. Qe1 {[%clk 0:01:19]} 22...
Rf8 {[%clk 0:01:37.2]} 23. Rh1 {[%clk 0:01:18.5]} 23... cxd5 {[%clk 0:01:34.5]}
24. cxd5 {[%clk 0:01:00.3]} 24... b5 {[%clk 0:01:34.4]} 25. Qh4 {[%clk
0:00:58.8]} 25... b4 {[%clk 0:01:23.2]} 26. hxg6 {[%clk 0:00:58.3]} 26... hxg6
{[%clk 0:01:23.5]} 27. Qh7+ {[%clk 0:00:52.7]} 27... Kf7 {[%clk 0:01:23.7]} 28.
Rf1+ {[%clk 0:00:39.2]} 28... Ke8 {[%clk 0:01:22.5]} 29. Qxg6+ {[%clk 0:00:39]}
29... Kd8 {[%clk 0:01:22.8]} 30. Rxf8+ {[%clk 0:00:34.5]} 30... Qxf8 {[%clk
0:01:23.7]} 31. Nd1 {[%clk 0:00:29.3]} 31... b3 {[%clk 0:01:14.1]} 32. axb3
{[%clk 0:00:26.2]} 32... axb3 {[%clk 0:01:13.2]} 33. Bxc5 {[%clk 0:00:25.5]}
33... dxc5 {[%clk 0:01:12.3]} 34. Nxb3 {[%clk 0:00:25.3]} 34... Be8 {[%clk
0:01:06.4]} 35. Qb6 {[%clk 0:00:23.3]} 35... Qf4+ {[%clk 0:01:05.3]} 36. Nd2
{[%clk 0:00:19.8]} 36... Qxg5 {[%clk 0:00:58.7]} 37. d6 {[%clk 0:00:19.8]} 37...
Qe7 {[%clk 0:00:49.1]} 38. dxe7+ {[%clk 0:00:19.4]} 1-0

[Event "*** Titled Tuesday Blitz"]
[Site "Chess.com"]
[Date "2020.05.26"]
[Round "6"]
[White "Ashedu66"]
[Black "MartinMatthiesen"]
[Result "0-1"]
[WhiteElo "2166"]
[BlackElo "2375"]
[TimeControl "180+1"]
[EndTime "11:06:59 PDT"]
[Termination "MartinMatthiesen won by checkmate"]

1. d4 {[%clk 0:03:00.9]} 1... f5 {[%clk 0:02:58]} 2. Bg5 {[%clk 0:02:59.8]} 2...
Nf6 {[%clk 0:02:48.1]} 3. Bxf6 {[%clk 0:02:59.7]} 3... exf6 {[%clk 0:02:48.3]}
4. c4 {[%clk 0:02:59]} 4... Bb4+ {[%clk 0:02:20.2]} 5. Nc3 {[%clk 0:02:57.7]}
5... O-O {[%clk 0:02:20.1]} 6. e3 {[%clk 0:02:54.6]} 6... Bxc3+ {[%clk
0:02:02.7]} 7. bxc3 {[%clk 0:02:53.4]} 7... c5 {[%clk 0:02:01.2]} 8. Bd3 {[%clk
0:02:52.2]} 8... d6 {[%clk 0:02:00.1]} 9. Qf3 {[%clk 0:02:51]} 9... g6 {[%clk
0:01:50.3]} 10. Ne2 {[%clk 0:02:50.5]} 10... Nc6 {[%clk 0:01:48.8]} 11. O-O
{[%clk 0:02:35.5]} 11... Qe7 {[%clk 0:01:38.8]} 12. Nf4 {[%clk 0:02:28.9]} 12...
Kh8 {[%clk 0:01:17.6]} 13. Rfe1 {[%clk 0:02:09.8]} 13... Qf7 {[%clk 0:01:10.4]}
14. Rab1 {[%clk 0:02:00.7]} 14... Rb8 {[%clk 0:01:06.3]} 15. e4 {[%clk
0:01:10.8]} 15... cxd4 {[%clk 0:01:00.2]} 16. exf5 {[%clk 0:01:09.9]} 16... Ne5
{[%clk 0:00:34.8]} 17. Qg3 {[%clk 0:00:57.8]} 17... gxf5 {[%clk 0:00:26.2]} 18.
cxd4 {[%clk 0:00:50.3]} 18... Rg8 {[%clk 0:00:25.4]} 19. Qh3 {[%clk 0:00:44.5]}
19... Ng6 {[%clk 0:00:20.1]} 20. Nd5 {[%clk 0:00:36.4]} 20... f4 {[%clk
0:00:19.3]} 21. f3 {[%clk 0:00:32.8]} 21... Bxh3 {[%clk 0:00:18.5]} 22. gxh3
{[%clk 0:00:16.5]} 22... Ne5+ {[%clk 0:00:18.1]} 23. Kh1 {[%clk 0:00:16.4]}
23... Nxd3 {[%clk 0:00:18.3]} 24. Re7 {[%clk 0:00:16.1]} 24... Nf2# {[%clk
0:00:18.5]} 0-1